fUSD/lending_fUSD_20240327
["ID","MTS","AMOUNT","RATE_DAILY","PERIOD"]
[320740972,1711543855242,-1004.28,0.00054794,120]
[320740973,1711543855252,-500.0,0.00054794,120]
[320740974,1711543855262,-2063.63,0.00054794,120]
[320740975,1711543855271,-500.0,0.00054794,120]
[320740976,1711543855281,-500.0,0.00054794,120]
[320740977,1711543855291,-500.0,0.00054794,120]
[320740978,1711543855301,-500.0,0.00054794,120]
[320740979,1711543855314,-500.0,0.00054794,120]
[320740980,1711543855323,-500.0,0.00054794,120]
[320740981,1711543855332,-500.0,0.00054794,120]
[320740982,1711543855341,-500.0,0.00054794,120]
[320740983,1711543855351,-500.0,0.00054794,120]
[320740984,1711543855361,-502.57191438,0.00054794,120]
[320740985,1711543855370,-500.0,0.00054794,120]
[320740986,1711543855380,-676.12,0.00054794,120]
[320740987,1711543855390,-500.0,0.00054794,120]
[320740988,1711543855399,-500.0,0.00054794,120]
[320740989,1711543855409,-500.0,0.00054794,120]
[320740990,1711543855419,-500.0,0.00054794,120]
[320740991,1711543855430,-500.0,0.00054794,120]
[320740992,1711543855439,-500.0,0.00054794,120]
[320740993,1711543855448,-156.93487137,0.00054794,120]
[320740994,1711543855458,-500.0,0.00054794,120]
[320740995,1711543855467,-500.0,0.00054794,120]
[320740996,1711543855615,-500.0,0.00054794,120]
[320740997,1711543855625,-500.0,0.00054794,120]
[320740998,1711543855637,-500.0,0.00054794,120]
[320740999,1711543855646,-559.56,0.00054794,120]
[320741000,1711543855657,-500.0,0.00054794,120]
[320741001,1711543855666,-500.0,0.00054794,120]
[320741002,1711543855675,-500.0,0.00054794,120]
[320741003,1711543855685,-406.5,0.00054794,120]
[320741004,1711543855696,-500.0,0.00054794,120]
[320741005,1711543855706,-500.0,0.00054794,120]
[320741006,1711543855716,-500.0,0.00054794,120]
[320741007,1711543855726,-500.0,0.00054794,120]
[320741008,1711543855736,-399.64614064,0.00054794,5]
[320741009,1711543855745,-500.0,0.00054794,120]
[320741010,1711543855756,-2308.15,0.00054794,120]
[320741011,1711543855766,-760.12,0.00054794,120]
[320741012,1711543855775,-509.8050617,0.00054794,120]
[320741013,1711543855785,-500.0,0.00054794,120]
[320741014,1711543855795,-2030.15,0.00054794,120]
[320741015,1711543855804,-502.38864528,0.00054794,120]
[320741016,1711543855816,-520.48688602,0.00054794,120]
[320741017,1711543855825,-500.0,0.00054794,120]
[320741018,1711543855835,-895.23,0.00054794,120]
[320741019,1711543855844,-615.23,0.00054794,120]
[320741020,1711543855853,-502.79464683,0.00054794,120]
[320741021,1711543855862,-520.00232155,0.00054794,120]
[320741022,1711543855872,-379.85,0.00054794,120]
[320741023,1711543855882,-500.0,0.00054794,120]
[320741024,1711543855891,-500.0,0.00054794,120]
[320741025,1711543855901,-500.0,0.00054794,120]
[320741026,1711543855910,-500.0,0.00054794,120]
[320741027,1711543855920,-500.0,0.00054794,120]
[320741028,1711543855929,-500.0,0.00054794,120]
[320741029,1711543855938,-500.0,0.00054794,120]
[320741030,1711543855947,-500.0,0.00054794,120]
[320741031,1711543855956,-500.0,0.00054794,120]
[320741032,1711543855966,-500.0,0.00054794,120]
[320741033,1711543855975,-500.0,0.00054794,120]
[320741034,1711543855984,-500.0,0.00054794,120]
[320741035,1711543855993,-500.0,0.00054794,120]
[320741036,1711543856002,-500.0,0.00054794,120]
[320741037,1711543856011,-988.02,0.00054794,120]
[320741038,1711543856021,-500.0,0.00054794,120]
[320741039,1711543856031,-500.0,0.00054794,120]
[320741040,1711543856040,-521.03,0.00054794,120]
[320741041,1711543856050,-500.0,0.00054794,120]
[320741042,1711543856060,-500.0,0.00054794,120]
[320741043,1711543856072,-1436.62,0.00054794,120]
[320741044,1711543856081,-500.0,0.00054794,120]
[320741045,1711543856090,-500.0,0.00054794,120]
[320741046,1711543856099,-501.68562043,0.00054794,120]
[320741047,1711543856110,-783.0,0.00054794,120]
[320741048,1711543856119,-500.0,0.00054794,120]
[320741049,1711543856128,-451.82930917,0.00054794,120]
[320741050,1711543856137,-500.0,0.00054794,120]
[320741051,1711543856145,-500.0,0.00054794,120]
[320741052,1711543856154,-500.0,0.00054794,120]
[320741053,1711543856163,-500.0,0.00054794,120]
[320741054,1711543856172,-1016.45,0.00054794,120]
[320741055,1711543856181,-500.0,0.00054794,120]
[320741056,1711543856191,-509.54233857,0.00054794,120]
[320741057,1711543856200,-500.0,0.00054794,120]
[320741058,1711543856209,-612.71,0.00054794,120]
[320741059,1711543856218,-500.0,0.00054794,120]
[320741060,1711543856227,-545.88,0.00054794,120]
[320741061,1711543856237,-500.0,0.00054794,120]
[320741062,1711543856246,-500.0,0.00054794,120]
[320741063,1711543856255,-559.88549864,0.00054794,120]
[320741064,1711543856265,-500.0,0.00054794,120]
[320741065,1711543856275,-877.53,0.00054794,120]
[320741066,1711543856284,-10990.32,0.00054794,120]
[320741067,1711543856293,-500.0,0.00054794,120]
[320741068,1711543856303,-500.0,0.00054794,120]
[320741069,1711543856313,-500.0,0.00054794,120]
[320741070,1711543856322,-500.0,0.00054794,120]
[320741071,1711543856332,-500.0,0.00054794,120]
[320741072,1711543856345,-500.0,0.00054794,120]
[320741073,1711543856354,-500.0,0.00054794,120]
[320741074,1711543856363,-500.0,0.00054794,120]
[320741075,1711543856372,-500.0,0.00054794,120]
[320741076,1711543856381,-2044.63,0.00054794,120]
[320741077,1711543856391,-500.0,0.00054794,7]
[320741078,1711543856401,-500.0,0.00054794,120]
[320741079,1711543856411,-500.0,0.00054794,120]
[320741080,1711543856420,-564.91982235,0.00054794,4]
[320741081,1711543856430,-4311.07,0.00054794,120]
[320741082,1711543856439,-500.0,0.00054794,120]
[320741083,1711543856448,-500.0,0.00054794,120]
[320741084,1711543856458,-500.0,0.00054794,120]
[320741085,1711543856467,-500.0,0.00054794,2]
[320741086,1711543856477,-1347.96,0.00054794,120]
[320741087,1711543856486,-500.0,0.00054794,120]
[320741088,1711543856495,-500.0,0.00054794,120]
[320741089,1711543856505,-500.0,0.00054794,120]
[320741090,1711543856514,-500.0,0.00054794,120]
[320741091,1711543856524,-500.0,0.00054794,120]
[320741092,1711543856535,-500.0,0.00054794,120]
[320741093,1711543856545,-500.0,0.00054794,120]
[320741094,1711543856554,-500.0,0.00054794,120]
[320741095,1711543856567,-500.0,0.00054794,120]
[320741096,1711543856577,-976.2,0.00054794,120]
[320741097,1711543856587,-1434.29,0.00054794,120]
[320741098,1711543856597,-500.0,0.00054794,120]
[320741099,1711543856607,-839.83,0.00054794,120]
[320741100,1711543856617,-500.0,0.00054794,120]
[320741101,1711543856628,-500.0,0.00054794,120]
[320741102,1711543856639,-7133.78,0.00054794,120]
[320741103,1711543856648,-545.62,0.00054794,120]
[320741104,1711543856659,-500.0,0.00054794,120]
[320741105,1711543856669,-500.0,0.00054794,120]
[320741106,1711543856678,-500.0,0.00054794,120]
[320741107,1711543856688,-500.0,0.00054794,120]
[320741108,1711543856697,-500.0,0.00054794,120]
[320741109,1711543856707,-500.0,0.00054794,120]
[320741110,1711543856716,-500.0,0.00054794,120]
[320741111,1711543856726,-500.0,0.00054794,120]
[320741112,1711543856737,-500.0,0.00054794,120]
[320741113,1711543856747,-503.88103075,0.00054794,120]
[320741114,1711543856757,-500.0,0.00054794,120]
[320741115,1711543856766,-500.0,0.00054794,120]
[320741116,1711543856776,-5109.09,0.00054794,120]
[320741117,1711543856786,-531.34,0.00054794,120]
[320741118,1711543856796,-500.0,0.00054794,120]
[320741119,1711543856806,-500.0,0.00054794,120]
[320741120,1711543856819,-500.0,0.00054794,120]
[320741121,1711543856829,-500.0,0.00054794,120]
[320741122,1711543856838,-500.0,0.00054794,120]
[320741123,1711543856848,-502.97311018,0.00054794,120]
[320741124,1711543856858,-7954.08,0.00054794,120]
[320741125,1711543856868,-500.0,0.00054794,120]
[320741126,1711543856878,-1365.01,0.00054794,120]
[320741127,1711543856888,-500.0,0.00054794,120]
[320741128,1711543856897,-500.0,0.00054794,120]
[320741129,1711543856907,-500.0,0.00054794,120]
[320741130,1711543856917,-500.0,0.00054794,120]
[320741131,1711543856927,-3477.52,0.00054794,120]
[320741132,1711543856936,-500.0,0.00054794,120]
[320741133,1711543856946,-1944.43,0.00054794,120]
[320741134,1711543856956,-500.0,0.00054794,120]
[320741135,1711543856966,-500.0,0.00054794,120]
[320741136,1711543856976,-22670.34,0.00054794,120]
[320741137,1711543856985,-500.0,0.00054794,120]
[320741138,1711543856994,-500.0,0.00054794,120]
[320741139,1711543857004,-15912.74,0.00054794,120]
[320741140,1711543857014,-726.92,0.00054794,120]
[320741141,1711543857023,-500.0,0.00054794,120]
[320741142,1711543857033,-500.0,0.00054794,120]
[320741143,1711543857042,-5197.8,0.00054794,120]
[320741144,1711543857051,-500.0,0.00054794,120]
[320741145,1711543857061,-500.0,0.00054794,120]
[320741146,1711543857072,-500.0,0.00054794,120]
[320741147,1711543857082,-507.6178546,0.00054794,120]
[320741148,1711543857092,-500.0,0.00054794,120]
[320741149,1711543857101,-500.0,0.00054794,120]
[320741150,1711543857111,-500.0,0.00054794,120]
[320741151,1711543857120,-500.0,0.00054794,120]
[320741152,1711543857130,-5025.57,0.00054794,120]
[320741153,1711543857139,-500.0,0.00054794,120]
[320741154,1711543857149,-3753.0,0.00054794,120]
[320741155,1711543857157,-1032.54,0.00054794,120]
[320741156,1711543857167,-335.37387455,0.00054794,120]
[320741157,1711543857176,-2884.81,0.00054794,120]
[320741158,1711543857186,-500.0,0.00054794,120]
[320741159,1711543857195,-525.19,0.00054794,120]
[320741160,1711543857204,-500.0,0.00054794,120]
[320741161,1711543857213,-500.0,0.00054794,120]
[320741162,1711543857222,-500.0,0.00054794,120]
[320741163,1711543857232,-500.0,0.00054794,120]
[320741164,1711543857242,-832.53,0.00054794,120]
[320741165,1711543857252,-1554.43,0.00054794,120]
[320741166,1711543857261,-5602.14,0.00054794,120]
[320741167,1711543857271,-2733.23,0.00054794,120]
[320741168,1711543857281,-311.81559997,0.00054794,120]
[320741169,1711543857290,-500.0,0.00054794,120]
[320741170,1711543857300,-1416.51,0.00054794,120]
[320741171,1711543857309,-508.45462986,0.00054794,120]
[320741172,1711543857323,-500.0,0.00054794,120]
[320741173,1711543857332,-508.12,0.00054794,120]
[320741174,1711543857342,-500.0,0.00054794,120]
[320741175,1711543857351,-3295.4,0.00054794,120]
[320741176,1711543857360,-1108.32,0.00054794,120]
[320741177,1711543857370,-2082.72,0.00054794,120]
[320741178,1711543857380,-500.0,0.00054794,120]
[320741179,1711543857389,-264.56591613,0.00054794,120]
[320741180,1711543857398,-79296.15,0.00054794,120]
[320741181,1711543857407,-3406.52,0.00054794,120]
[320741182,1711543857417,-500.0,0.00054794,120]
[320741183,1711543857427,-500.0,0.00054794,120]
[320741184,1711543857436,-21230.92,0.00054794,120]
[320741185,1711543857445,-500.0,0.00054794,120]
[320741186,1711543857455,-786.05,0.00054794,120]
[320741187,1711543857464,-575.24,0.00054794,120]
[320741188,1711543857474,-500.0,0.00054794,120]
[320741189,1711543857483,-500.0,0.00054794,120]
[320741190,1711543857493,-3470.89,0.00054794,120]
[320741191,1711543857502,-794.6,0.00054794,120]
[320741192,1711543857512,-1436.29,0.00054794,120]
[320741193,1711543857522,-500.0,0.00054794,120]
[320741194,1711543857532,-4270.02,0.00054794,120]
[320741195,1711543857542,-500.0,0.00054794,120]
[320741196,1711543857551,-500.0,0.00054794,120]
[320741197,1711543857560,-13832.31,0.00054794,120]
[320741198,1711543857572,-500.0,0.00054794,120]
[320741199,1711543857581,-2558.6,0.00054794,120]
[320741200,1711543857591,-500.0,0.00054794,120]
[320741201,1711543857601,-9397.34,0.00054794,120]
[320741202,1711543857611,-500.0,0.00054794,120]
[320741203,1711543857620,-1488.59,0.00054794,120]
[320741204,1711543857631,-4828.26,0.00054794,120]
[320741205,1711543857648,-1008.05,0.00054794,120]
[320741206,1711543857658,-500.0,0.00054794,120]
[320741207,1711543857667,-3178.59,0.00054794,120]
[320741208,1711543857678,-544.36,0.00054794,120]
[320741209,1711543857688,-500.0,0.00054794,120]
[320741210,1711543857697,-3085.25,0.00054794,120]
[320741211,1711543857706,-582.28,0.00054794,120]
[320741212,1711543857716,-500.0,0.00054794,120]
[320741213,1711543857725,-751.31,0.00054794,120]
[320741214,1711543857735,-500.0,0.00054794,120]
[320741215,1711543857744,-2368.29,0.00054794,120]
[320741216,1711543857754,-500.0,0.00054794,120]
[320741217,1711543857763,-2699.02,0.00054794,120]
[320741218,1711543857773,-1000.0,0.00054794,14]
[320741219,1711543857782,-5971.8,0.00054794,120]
[320741220,1711543857791,-3173.89,0.00054794,120]
[320741221,1711543857800,-500.0,0.00054794,120]
[320741222,1711543857809,-500.0,0.00054794,120]
[320741223,1711543857822,-888.0,0.00054794,120]
[320741224,1711543857831,-500.0,0.00054794,120]
[320741225,1711543857840,-500.0,0.00054794,120]
[320741226,1711543857849,-500.0,0.00054794,120]
[320741227,1711543857858,-5725.46,0.00054794,120]
[320741228,1711543857868,-500.0,0.00054794,120]
[320741229,1711543857878,-2196.71,0.00054794,120]
[320741230,1711543857887,-500.0,0.00054794,120]
[320741231,1711543858025,-500.0,0.00054794,120]
[320741232,1711543858035,-775.97,0.00054794,120]
[320741233,1711543858044,-4233.1,0.00054794,120]
[320741234,1711543858053,-500.0,0.00054794,120]
[320741235,1711543858063,-500.0,0.00054794,120]
[320741236,1711543858074,-3326.63,0.00054794,120]
[320741237,1711543858085,-500.0,0.00054794,120]
[320741238,1711543858094,-14051.88,0.00054794,120]
[320741239,1711543858104,-500.0,0.00054794,120]
[320741240,1711543858113,-2626.24,0.00054794,120]
[320741241,1711543858122,-1494.67,0.00054794,120]
[320741242,1711543858131,-5132.44,0.00054794,120]
[320741243,1711543858141,-578.21,0.00054794,120]
[320741244,1711543858150,-1284.88,0.00054794,120]
[320741245,1711543858159,-508.66322346,0.00054794,120]
[320741246,1711543858169,-500.0,0.00054794,120]
[320741247,1711543858179,-5966.14,0.00054794,120]
[320741248,1711543858188,-500.0,0.00054794,120]
[320741249,1711543858197,-500.0,0.00054794,120]
[320741250,1711543858207,-3897.67,0.00054794,120]
[320741251,1711543858216,-500.0,0.00054794,120]
[320741252,1711543858225,-500.0,0.00054794,120]
[320741253,1711543858234,-500.0,0.00054794,120]
[320741254,1711543858244,-500.0,0.00054794,120]
[320741255,1711543858253,-638.55,0.00054794,120]
[320741256,1711543858263,-500.0,0.00054794,120]
[320741257,1711543858272,-2090.88,0.00054794,120]
[320741258,1711543858281,-1510.54,0.00054794,120]
[320741259,1711543858291,-740.92,0.00054794,120]
[320741260,1711543858300,-500.0,0.00054794,120]
[320741261,1711543858310,-500.0,0.00054794,120]
[320741262,1711543858321,-826.27,0.00054794,120]
[320741263,1711543858330,-1852.95,0.00054794,120]
[320741264,1711543858339,-6306.66,0.00054794,120]
[320741265,1711543858348,-500.0,0.00054794,120]
[320741266,1711543858357,-1088.64,0.00054794,120]
[320741267,1711543858367,-5336.71,0.00054794,120]
[320741268,1711543858376,-2495.6,0.00054794,120]
[320741269,1711543858386,-3525.02,0.00054794,120]
[320741270,1711543858395,-3796.34,0.00054794,120]
[320741271,1711543858405,-500.0,0.00054794,120]
[320741272,1711543858414,-500.0,0.00054794,120]
[320741273,1711543858424,-500.0,0.00054794,120]
[320741274,1711543858434,-52702.13,0.00054794,120]
[320741275,1711543858443,-500.0,0.00054794,120]
[320741276,1711543858452,-4382.0,0.00054794,120]
[320741277,1711543858461,-6749.09,0.00054794,120]
[320741278,1711543858471,-5317.23,0.00054794,120]
[320741279,1711543858480,-500.0,0.00054794,120]
[320741280,1711543858489,-1020.49,0.00054794,120]
[320741281,1711543858499,-500.0,0.00054794,120]
[320741282,1711543858508,-9670.8,0.00054794,120]
[320741283,1711543858517,-2509.66,0.00054794,120]
[320741284,1711543858526,-500.0,0.00054794,120]
[320741285,1711543858536,-500.0,0.00054794,120]
[320741286,1711543858545,-3800.06,0.00054794,120]
[320741287,1711543858554,-500.0,0.00054794,120]
[320741288,1711543858564,-43977.12,0.00054794,120]
[320741289,1711543858574,-500.0,0.00054794,120]
[320741290,1711543858585,-1033.96,0.00054794,120]
[320741291,1711543858595,-2224.07,0.00054794,120]
[320741292,1711543858604,-6046.1,0.00054794,120]
[320741293,1711543858613,-1400.16,0.00054794,120]
[320741294,1711543858622,-3289.32,0.00054794,120]
[320741295,1711543858632,-3536.01,0.00054794,120]
[320741296,1711543858643,-500.0,0.00054794,120]
[320741297,1711543858652,-500.0,0.00054794,120]
[320741298,1711543858662,-500.0,0.00054794,7]
[320741299,1711543858672,-500.0,0.00054794,120]
[320741300,1711543858683,-991.15,0.00054794,120]
[320741301,1711543858693,-500.0,0.00054794,120]
[320741302,1711543858702,-684.84,0.00054794,120]
[320741303,1711543858712,-500.0,0.00054794,120]
[320741304,1711543858722,-670.41,0.00054794,120]
[320741305,1711543858732,-500.0,0.00054794,120]
[320741306,1711543858742,-688.53,0.00054794,120]
[320741307,1711543858753,-10352.43,0.00054794,120]
[320741308,1711543858763,-8690.1,0.00054794,120]
[320741309,1711543858773,-759.99,0.00054794,120]
[320741310,1711543858783,-5002.55,0.00054794,120]
[320741311,1711543858793,-4330.07,0.00054794,120]
[320741312,1711543858803,-500.0,0.00054794,120]
[320741313,1711543858813,-500.0,0.00054794,120]
[320741314,1711543858828,-1000.0,0.00054794,120]
[320741315,1711543858837,-2895.84,0.00054794,120]
[320741316,1711543858846,-500.0,0.00054794,120]
[320741317,1711543858855,-500.0,0.00054794,120]
[320741318,1711543858864,-2172.19,0.00054794,120]
[320741319,1711543858873,-500.0,0.00054794,120]
[320741320,1711543858882,-613.33816375,0.00054794,120]
[320741321,1711543858891,-500.0,0.00054794,120]
[320741322,1711543858900,-500.0,0.00054794,120]
[320741323,1711543858910,-2732.75,0.00054794,120]
[320741324,1711543858918,-1796.45,0.00054794,120]
[320741325,1711543858927,-5480.38,0.00054794,120]
[320741326,1711543858936,-500.0,0.00054794,120]
[320741327,1711543858946,-500.0,0.00054794,65]
[320741328,1711543858955,-16950.66,0.00054794,120]
[320741329,1711543858964,-500.0,0.00054794,120]
[320741330,1711543858974,-500.0,0.00054794,120]
[320741331,1711543858983,-500.0,0.00054794,120]
[320741332,1711543858992,-5091.09,0.00054794,21]
[320741333,1711543859002,-773.1,0.00054794,120]
[320741334,1711543859011,-500.0,0.00054794,120]
[320741335,1711543859020,-3400.43,0.00054794,120]
[320741336,1711543859029,-500.0,0.00054794,120]
[320741337,1711543859038,-500.0,0.00054794,120]
[320741338,1711543859048,-500.0,0.00054794,120]
[320741339,1711543859057,-19292.32,0.00054794,120]
[320741340,1711543859067,-500.0,0.00054794,120]
[320741341,1711543859079,-17160.48,0.00054794,120]
[320741342,1711543859088,-8474.88,0.00054794,120]
[320741343,1711543859098,-649.49,0.00054794,120]
[320741344,1711543859107,-500.0,0.00054794,120]
[320741345,1711543859116,-2690.5,0.00054794,120]
[320741346,1711543859126,-4740.83,0.00054794,120]
[320741347,1711543859136,-938.28,0.00054794,120]
[320741348,1711543859145,-12410.62,0.00054794,120]
[320741349,1711543859155,-4103.23,0.00054794,120]
[320741350,1711543859164,-3583.19,0.00054794,120]
[320741351,1711543859173,-500.0,0.00054794,120]
[320741352,1711543859184,-500.0,0.00054794,2]
[320741353,1711543859194,-886.33,0.00054794,120]
[320741354,1711543859203,-672.63,0.00054794,120]
[320741355,1711543859212,-4086.57,0.00054794,120]
[320741356,1711543859220,-500.0,0.00054794,120]
[320741357,1711543859229,-500.0,0.00054794,120]
[320741358,1711543859239,-8381.34,0.00054794,120]
[320741359,1711543859249,-512.61,0.00054794,120]
[320741360,1711543859258,-500.0,0.00054794,120]
[320741361,1711543859267,-34309.32,0.00054794,120]
[320741362,1711543859277,-6247.3,0.00054794,120]
[320741363,1711543859286,-1388.52,0.00054794,120]
[320741364,1711543859295,-600.02660671,0.00054794,120]
[320741365,1711543859304,-1173.99,0.00054794,120]
[320741366,1711543859314,-3278.85,0.00054794,120]
[320741367,1711543859325,-8798.58,0.00054794,120]
[320741368,1711543859334,-500.0,0.00054794,120]
[320741369,1711543859343,-500.0,0.00054794,120]
[320741370,1711543859353,-500.0,0.00054794,120]
[320741371,1711543859362,-2480.34,0.00054794,120]
[320741372,1711543859372,-500.0,0.00054794,85]
[320741373,1711543859381,-1225.44,0.00054794,120]
[320741374,1711543859392,-500.0,0.00054794,120]
[320741375,1711543859401,-500.0,0.00054794,120]
[320741376,1711543859412,-1233.43,0.00054794,120]
[320741377,1711543859421,-676.46,0.00054794,120]
[320741378,1711543859431,-500.0,0.00054794,120]
[320741379,1711543859441,-2528.31,0.00054794,120]
[320741380,1711543859451,-500.0,0.00054794,120]
[320741381,1711543859460,-500.0,0.00054794,120]
[320741382,1711543859469,-500.0,0.00054794,120]
[320741383,1711543859478,-500.0,0.00054794,120]
[320741384,1711543859488,-1659.22,0.00054794,120]
[320741385,1711543859498,-11741.46,0.00054794,120]
[320741386,1711543859507,-1083.78,0.00054794,120]
[320741387,1711543859517,-500.0,0.00054794,120]
[320741388,1711543859527,-500.0,0.00054794,120]
[320741389,1711543859536,-301.85,0.00054794,120]
[320741390,1711543859546,-2180.01,0.00054794,120]
[320741391,1711543859555,-502.07744116,0.00054794,120]
[320741392,1711543859564,-1845.88,0.00054794,120]
[320741393,1711543859575,-500.0,0.00054794,120]
[320741394,1711543859584,-584.47,0.00054794,120]
[320741395,1711543859594,-8083.93,0.00054794,120]
[320741396,1711543859603,-3516.57,0.00054794,120]
[320741397,1711543859612,-2618.08,0.00054794,120]
[320741398,1711543859621,-3201.11,0.00054794,120]
[320741399,1711543859631,-500.0,0.00054794,120]
[320741400,1711543859642,-500.0,0.00054794,120]
[320741401,1711543859652,-500.0,0.00054794,120]
[320741402,1711543859663,-650.65,0.00054794,120]
[320741403,1711543859672,-500.0,0.00054794,120]
[320741404,1711543859681,-3063.83,0.00054794,120]
[320741405,1711543859690,-500.0,0.00054794,120]
[320741406,1711543859700,-500.0,0.00054794,120]
[320741407,1711543859709,-1350.19,0.00054794,120]
[320741408,1711543859719,-500.0,0.00054794,120]
[320741409,1711543859728,-1927.24,0.00054794,120]
[320741410,1711543859740,-500.0,0.00054794,2]
[320741411,1711543859750,-901.69,0.00054794,120]
[320741412,1711543859759,-544.48,0.00054794,120]
[320741413,1711543859768,-2225.83,0.00054794,120]
[320741414,1711543859779,-500.0,0.00054794,120]
[320741415,1711543859788,-500.0,0.00054794,120]
[320741416,1711543859797,-1141.16,0.00054794,120]
[320741417,1711543859807,-500.0,0.00054794,120]
[320741418,1711543859821,-1139.26,0.00054794,120]
[320741419,1711543859831,-832.09,0.00054794,120]
[320741420,1711543859841,-2166.83,0.00054794,120]
[320741421,1711543859851,-500.0,0.00054794,120]
[320741422,1711543859862,-500.0,0.00054794,120]
[320741423,1711543859871,-3156.0,0.00054794,120]
[320741424,1711543859880,-596.08,0.00054794,120]
[320741425,1711543859889,-2931.63,0.00054794,120]
[320741426,1711543859898,-500.0,0.00054794,120]
[320741427,1711543859908,-937.27,0.00054794,120]
[320741428,1711543859918,-666.49,0.00054794,120]
[320741429,1711543859927,-500.74956829,0.00054794,120]
[320741430,1711543859937,-500.0,0.00054794,120]
[320741431,1711543859947,-1458.74,0.00054794,120]
[320741432,1711543859957,-2453.89,0.00054794,120]
[320741433,1711543859966,-617.82,0.00054794,120]
[320741434,1711543859976,-500.0,0.00054794,120]
[320741435,1711543859985,-1000.0,0.00054795,13]
[320741436,1711543859995,-1000.0,0.00054795,13]
[320741437,1711543860005,-1000.0,0.00054795,13]
[320741438,1711543860014,-1000.0,0.00054795,13]
[320741439,1711543860024,-1000.0,0.00054795,13]
[320741440,1711543860033,-1000.0,0.00054795,13]
[320741441,1711543860043,-1000.0,0.00054795,13]
[320741442,1711543860053,-1000.0,0.00054795,13]
[320741443,1711543860063,-1000.0,0.00054795,13]
[320741444,1711543860073,-1000.0,0.00054795,13]
[320741445,1711543860083,-1000.0,0.00054795,13]
[320741446,1711543860092,-1000.0,0.00054795,13]
[320741447,1711543860229,-1000.0,0.00054795,13]
[320741448,1711543860241,-1000.0,0.00054795,13]
[320741449,1711543860252,-1000.0,0.00054795,13]
[320741450,1711543860263,-1000.0,0.00054795,13]
[320741451,1711543860273,-1000.0,0.00054795,13]
[320741452,1711543860283,-1000.0,0.00054795,13]
[320741453,1711543860293,-1000.0,0.00054795,13]
[320741454,1711543860303,-1000.0,0.00054795,13]
[320741455,1711543860313,-1000.0,0.00054795,13]
[320741456,1711543860326,-1000.0,0.00054795,13]
[320741457,1711543860336,-1000.0,0.00054795,13]
[320741458,1711543860347,-1000.0,0.00054795,13]
[320741459,1711543860356,-1000.0,0.00054795,13]
[320741460,1711543860367,-1000.0,0.00054795,13]
[320741461,1711543860378,-1000.0,0.00054795,13]
[320741462,1711543860390,-1000.0,0.00054795,13]
[320741463,1711543860400,-973.0,0.00054795,13]
[320741464,1711543860409,-4892.85,0.00054795,120]
[320741465,1711543860419,-970.0,0.00054795,120]
[320741466,1711543860429,-918.0,0.00054795,120]
[320741467,1711543860439,-173.032721,0.00054798,107]
[320741468,1711543860449,-4000.0,0.000548,120]
[320741469,1711543860459,-5224.839449,0.00054861,2]
[320741470,1711543860469,-173.032719,0.00054898,100]
[320741471,1711543860480,-4821.24114706,0.000549,120]